bitfinex-derivatives/quotes_SOLF0:USTF0_20240908
["timestamp","ask_amount","ask_price","bid_price","bid_amount"]
[1725794951988,30.85966721,130.43,130.26,1.40997596]
[1725794952495,30.85966721,130.43,130.25,3.9088]
[1725794952695,30.85966721,130.43,130.26,1.40998417]
[1725794954688,30.85966721,130.43,130.25,3.9088]
[1725794955294,30.85966721,130.43,130.26,1.41005796]
[1725794958604,30.85966721,130.43,130.25,3.9088]
[1725794958794,30.85966721,130.43,130.26,1.41003462]
[1725794963901,30.85966721,130.43,130.25,3.9088]
[1725794964100,30.85966721,130.43,130.26,1.40995964]
[1725794966797,30.85966721,130.43,130.27,1.40986954]
[1725794966993,30.85966721,130.43,130.27,3.77752205]
[1725794967198,30.85966721,130.43,130.25,3.9088]
[1725794967399,36.98966721,130.43,130.26,1.40986954]
[1725794970901,36.98966721,130.43,130.27,1.40987463]
[1725794971107,36.98966721,130.43,130.27,3.91216716]
[1725794971296,36.98966721,130.43,130.25,3.9088]
[1725794971502,36.98966721,130.43,130.26,1.40980912]
[1725794975011,36.98966721,130.43,130.27,1.40975485]
[1725794975208,36.98966721,130.43,130.27,3.8150201]
[1725794975409,36.98966721,130.43,130.25,3.9088]
[1725794975612,36.98966721,130.43,130.26,1.40982036]
[1725794977607,36.98966721,130.43,130.26,12.65148911]
[1725794977909,36.98966721,130.43,130.27,1.40982036]
[1725794978109,36.98966721,130.43,130.28,7.675]
[1725794978809,36.98966721,130.43,130.29,1.3772]
[1725794979806,36.98966721,130.43,130.29,2.7362]
[1725794988116,13.96966721,130.43,130.29,2.7362]
[1725794989922,10.1095,130.43,130.3,12.65123245]
[1725794990116,10.1095,130.43,130.31,1.4095637]
[1725794990315,10.1095,130.43,130.32,7.675]
[1725794990517,10.1095,130.43,130.33,1.4095637]
[1725794991014,10.1095,130.43,130.3,5.1112414]
[1725794991015,10.1095,130.43,130.3,3.7746414]
[1725794991216,10.1095,130.43,130.31,1.4093569]
[1725794991419,10.1095,130.43,130.31,3.78325032]
[1725794991618,10.1095,130.43,130.29,9.0522]
[1725794991823,10.1095,130.43,130.3,1.40944408]
[1725794992121,10.1095,130.43,130.3,5.17352511]
[1725794992420,10.1095,130.43,130.3,3.76408103]
[1725794992620,10.1095,130.43,130.29,1.3772]
[1725794992821,10.1095,130.43,130.3,1.40946465]
[1725794999219,10.1095,130.43,130.29,11.5770999]
[1725794999524,10.1095,130.43,130.3,1.40946248]
[1725795001822,10.1095,130.43,130.32,7.675]
[1725795002016,10.1095,130.43,130.33,1.4089764]
[1725795004836,10.1095,130.43,130.31,2.2699]
[1725795005027,10.1095,130.43,130.32,1.40923753]
[1725795006134,10.1095,130.43,130.31,2.2699]
[1725795006340,10.1095,130.43,130.32,1.40928412]
[1725795008532,10.1095,130.43,130.3,7.675]
[1725795011839,33.1295,130.43,130.3,7.675]
[1725795014635,10.1095,130.43,130.3,7.675]
[1725795014829,10.1095,130.43,130.31,10.36628124]
[1725795015036,10.1095,130.43,130.32,1.40948124]
[1725795015238,10.1095,130.43,130.32,2.78838124]
[1725795015438,10.1095,130.43,130.33,1.40948124]
[1725795016944,10.1095,130.43,130.34,1.2705]
[1725795017151,10.1095,130.43,130.35,1.40948124]
[1725795018832,10.1095,130.43,130.35,5.30373781]
[1725795019035,10.1095,130.43,130.35,3.89425657]
[1725795019235,10.1095,130.43,130.34,1.2705]
[1725795019442,10.1095,130.43,130.35,1.40894062]
[1725795019649,10.1095,130.43,130.35,5.32023403]
[1725795019844,10.1095,130.43,130.35,3.91129341]
[1725795020141,10.1095,130.43,130.34,1.2705]
[1725795020446,10.1095,130.43,130.35,1.40894062]
[1725795022242,10.1095,130.43,130.34,12.69923763]
[1725795022432,10.1095,130.43,130.35,1.40894279]
[1725795022740,10.1095,130.43,130.34,12.69923763]
[1725795022943,10.1095,130.43,130.35,1.40894279]
[1725795026546,10.1095,130.43,130.34,12.69923763]
[1725795026742,10.1095,130.43,130.35,1.40894035]
[1725795030650,10.1095,130.43,130.34,12.69923763]
[1725795030651,10.1095,130.43,130.36,1.40887492]
[1725795030945,10.1095,130.43,130.34,12.69923763]
[1725795031146,10.1095,130.43,130.35,1.40887492]
[1725795034050,10.1095,130.43,130.34,12.69923763]
[1725795034555,10.1095,130.43,130.34,11.42873763]
[1725795035250,10.1095,130.43,130.34,3.75373763]
[1725795035448,10.1095,130.43,130.32,1.3789]
[1725795036053,10.1095,130.43,130.32,5.23059848]
[1725795038961,14.01709202,130.43,130.32,5.23059848]
[1725795039462,10.1095,130.43,130.32,5.23059848]
[1725795039657,10.1095,130.43,130.33,1.40919893]
[1725795039855,10.1095,130.43,130.32,5.23059848]
[1725795040862,10.1095,130.43,130.32,1.3789]
[1725795041164,10.1095,130.43,130.32,5.3056638]
[1725795041356,10.1095,130.43,130.32,1.3789]
[1725795041957,10.1095,130.43,130.32,5.17375797]
[1725795045657,10.1095,130.43,130.33,2.81856521]
[1725795045858,10.1095,130.43,130.33,1.40928442]
[1725795049568,10.1095,130.43,130.34,1.40911614]
[1725795050766,10.1095,130.43,130.32,5.17375797]
[1725795051078,6.13,130.43,130.33,17.98225404]
[1725795051281,6.13,130.43,130.34,17.98225404]
[1725795051487,6.13,130.43,130.36,7.675]
[1725795051671,6.13,130.43,130.37,4.11542848]
[1725795051976,6.13,130.43,130.38,1.40862848]
[1725795052388,6.13,130.43,130.37,2.7068]
[1725795052578,6.13,130.43,130.38,1.40859404]
[1725795055571,6.13,130.43,130.37,2.7068]
[1725795055877,6.13,130.43,130.38,1.40862616]
[1725795059577,6.13,130.43,130.37,2.7068]
[1725795059775,6.13,130.43,130.38,1.40864196]
[1725795060774,6.13,130.43,130.37,2.7068]
[1725795060980,6.13,130.43,130.38,1.40864196]
[1725795062783,6.13,130.43,130.39,1.40857548]
[1725795062982,6.13,130.43,130.39,3.76072961]
[1725795063185,6.13,130.43,130.37,2.7068]
[1725795063382,6.13,130.43,130.38,1.40851868]
[1725795067485,6.13,130.43,130.37,2.7068]
[1725795067690,6.13,130.43,130.38,1.40858428]
[1725795071992,6.13,130.43,130.37,2.7068]
[1725795072199,6.13,130.43,130.38,1.40858407]
[1725795076087,3.07000001,130.43,130.38,1.40858407]
[1725795076592,3.07000001,130.43,130.39,1.40843569]
[1725795079703,2.07000001,130.43,130.39,1.40843569]
[1725795079894,0.07000001,130.43,130.4,1.3089]
[1725795080090,0.07000001,130.43,130.41,1.40843569]
[1725795080291,228.0,130.62,130.41,1.40843569]
[1725795080597,2.6913,130.56,130.43,7.675]
[1725795080798,2.6913,130.56,130.44,1.40843569]
[1725795080997,1.3085,130.55,130.44,11.53035025]
[1725795081289,1.3085,130.55,130.45,1.375]
[1725795081494,1.3085,130.55,130.46,1.40778581]
[1725795081715,1.3085,130.55,130.46,5.30987686]
[1725795081885,1.3085,130.55,130.47,1.40778581]
[1725795082494,1.3085,130.55,130.45,1.375]
[1725795082796,1.3085,130.55,130.46,1.40774767]
[1725795084892,3.7085,130.55,130.46,1.40774767]
[1725795085088,3.7085,130.55,130.47,1.3815]
[1725795085404,3.7085,130.55,130.48,1.40772023]
[1725795085606,3.7085,130.55,130.47,1.3815]
[1725795086102,3.7085,130.55,130.48,1.40771311]
[1725795086594,3.7085,130.55,130.47,1.3815]
[1725795086800,3.7085,130.55,130.48,1.40771311]
[1725795087298,2.5698,130.56,130.48,1.40771311]
[1725795087497,2.5698,130.56,130.48,5.31979915]
[1725795087699,2.5698,130.56,130.47,1.3815]
[1725795088293,2.5698,130.56,130.47,5.13809833]
[1725795088890,2.5698,130.56,130.47,3.75659833]
[1725795089196,2.5698,130.56,130.42,1.2724]
[1725795089393,2.5698,130.56,130.43,1.40803613]
[1725795089595,2.5698,130.56,130.43,7.675]
[1725795089799,2.5698,130.56,130.44,1.40803655]
[1725795089999,2.5698,130.56,130.43,7.669]
[1725795091698,2.5698,130.56,130.44,1.40810101]
[1725795093997,2.5698,130.56,130.43,7.669]
[1725795094199,2.5698,130.56,130.44,1.40795759]
[1725795094597,2.5698,130.56,130.43,7.669]
[1725795094808,2.5698,130.56,130.44,1.40792903]
[1725795099005,2.5698,130.56,130.43,7.669]
[1725795099201,2.5698,130.56,130.44,1.40760756]
[1725795100202,2.5698,130.56,130.45,1.40760777]
[1725795100506,2.5698,130.56,130.46,1.40760777]
[1725795100708,2.5698,130.56,130.47,4.09630777]
[1725795101005,2.5698,130.56,130.48,1.40760777]
[1725795102701,139.96282281,130.64,130.48,1.40760777]
[1725795102905,2.4659,130.62,130.48,10.33740777]
[1725795103104,2.4659,130.62,130.48,8.9298]
[1725795110904,2.4659,130.62,130.49,1.40757754]
[1725795111100,2.4659,130.62,130.49,12.95934038]
[1725795111301,2.4659,130.62,130.49,11.55176284]
[1725795112107,2.4659,130.62,130.5,1.40740593]
[1725795112508,2.4659,130.62,130.49,11.55176284]
[1725795112716,2.4659,130.62,130.5,1.40743189]
[1725795116216,2.4659,130.62,130.49,11.55176284]
[1725795116409,2.4659,130.62,130.5,1.40742203]
[1725795118818,139.96282281,130.64,130.5,1.40742203]
[1725795120620,139.96282281,130.64,130.51,1.4072077]
[1725795120819,139.96282281,130.64,130.52,1.4072077]
[1725795121013,139.96282281,130.64,130.49,11.55176284]
[1725795121213,139.96282281,130.64,130.5,1.40731413]
[1725795121924,139.96282281,130.64,130.49,11.55176284]
[1725795122219,139.96282281,130.64,130.5,1.40737355]
[1725795122614,162.98282281,130.64,130.49,11.55176284]
[1725795131125,162.98282281,130.64,130.49,3.88276284]
[1725795131327,162.98282281,130.64,130.48,1.2608]
[1725795131628,162.98282281,130.64,130.47,2.6887]
[1725795133529,1.0,130.63,130.47,2.6887]
[1725795134624,1.0,130.63,130.47,1.3742]
[1725795137940,1.0,130.63,130.48,1.40758467]
[1725795138141,1.0,130.63,130.49,1.40743323]
[1725795138341,1.0,130.63,130.49,3.78130984]
[1725795138643,1.0,130.63,130.47,1.3742]
[1725795138943,1.0,130.63,130.48,1.40743566]
[1725795139643,1.0,130.63,130.49,1.40745018]
[1725795139844,1.0,130.63,130.49,3.9015774]
[1725795140047,1.0,130.63,130.47,1.3742]
[1725795140343,1.0,130.63,130.48,1.40745073]
[1725795141250,1.0,130.63,130.49,1.40742769]
[1725795141445,1.0,130.63,130.49,3.85944373]
[1725795141644,1.0,130.63,130.47,1.3742]
[1725795141946,1.0,130.63,130.48,1.40740209]
[1725795142142,1.0,130.63,130.49,1.3403]
[1725795142339,1.0,130.63,130.49,5.14353223]
[1725795142539,1.0,130.63,130.5,1.40726539]
[1725795142746,1.0,130.63,130.5,5.26679357]
[1725795143043,1.0,130.63,130.5,3.85952818]
[1725795143244,1.0,130.63,130.49,1.3403]
[1725795143455,1.0,130.63,130.5,1.40730868]
[1725795143746,1.0,130.63,130.5,5.24271002]
[1725795144044,162.98282281,130.64,130.51,1.40719056]
[1725795144242,162.98282281,130.64,130.49,1.3403]
[1725795144243,162.98282281,130.64,130.52,1.40719056]
[1725795144441,162.98282281,130.64,130.5,1.3054]
[1725795144644,162.98282281,130.64,130.51,1.4071662]
[1725795145343,162.98282281,130.64,130.51,5.21977149]
[1725795145546,162.98282281,130.64,130.51,3.81260529]
[1725795145748,162.98282281,130.64,130.5,1.3054]
[1725795146358,162.98282281,130.64,130.5,5.15399856]
[1725795146544,162.98282281,130.64,130.49,1.3403]
[1725795146753,162.98282281,130.64,130.5,1.40729522]
[1725795147244,162.98282281,130.64,130.49,5.16171216]
[1725795147437,162.98282281,130.64,130.5,1.40739462]
[1725795147640,162.98282281,130.64,130.49,5.16171216]
[1725795151246,162.98282281,130.64,130.5,1.4072129]
[1725795151955,162.98282281,130.64,130.51,1.40711698]
[1725795152155,162.98282281,130.64,130.52,2.75411698]
[1725795152350,162.98282281,130.64,130.52,1.347]
[1725795155646,162.98282281,130.64,130.53,1.40699041]
[1725795155647,139.96282281,130.64,130.53,1.40699041]
[1725795155852,139.96282281,130.64,130.54,1.3031]
[1725795159259,2.5233,130.66,130.55,1.40685455]
[1725795160355,2.5233,130.66,130.54,1.3031]
[1725795160549,2.5233,130.66,130.55,1.40672448]
[1725795164459,2.5233,130.66,130.56,1.40666327]
[1725795164758,2.5233,130.66,130.54,1.3031]
[1725795164958,2.5233,130.66,130.55,1.40664194]
[1725795168364,2.5233,130.66,130.54,1.3031]
[1725795168563,2.5233,130.66,130.55,1.40644405]
[1725795169559,2.5233,130.66,130.54,1.3031]
[1725795169761,2.5233,130.66,130.55,1.406491]
[1725795172561,2.5233,130.66,130.54,1.3031]
[1725795172562,2.5233,130.66,130.56,1.40649139]
[1725795172758,2.5233,130.66,130.57,1.2686]
[1725795172962,2.5233,130.66,130.57,2.67509139]
[1725795173166,2.5233,130.66,130.58,1.40649139]
[1725795174959,22.99,130.74,130.58,1.40649139]
[1725795175168,25.5387,130.73,130.59,1.3462]
[1725795176168,22.99,130.72,130.59,1.3462]
[1725795177268,2.5487,130.73,130.59,1.3462]
[1725795177463,2.5487,130.73,130.6,1.40626303]
[1725795180561,2.5487,130.73,130.59,1.3462]
[1725795181074,2.5487,130.73,130.6,1.40639779]
[1725795181273,2.5487,130.73,130.59,1.3462]
[1725795182374,2.5487,130.73,130.6,1.40617129]
[1725795183571,2.5487,130.73,130.59,1.3462]
[1725795183572,2.5487,130.73,130.61,1.4060481]
[1725795183773,2.5487,130.73,130.62,1.4060481]
[1725795183972,2.5487,130.73,130.63,2.7310481]
[1725795184182,2.5487,130.73,130.63,1.325]
[1725795184772,2.5487,130.73,130.63,5.13916877]
[1725795185479,2.5487,130.73,130.64,1.40585417]
[1725795185670,2.5487,130.73,130.64,2.76035417]
[1725795185869,2.5487,130.73,130.64,1.3545]
[1725795189685,2.5487,130.73,130.63,5.13916877]
[1725795189872,2.5487,130.73,130.63,3.81416877]
[1725795190082,2.5487,130.73,130.6,7.669]
[1725795190275,2.5487,130.73,130.61,1.4059929]
[1725795190772,2.5487,130.73,130.6,7.669]
[1725795193082,2.5487,130.73,130.59,1.3132]
[1725795193383,2.5487,130.73,130.58,1.2732]
[1725795193582,2.5487,130.73,130.59,1.40640552]
[1725795195388,2.5487,130.73,130.58,1.2732]
[1725795195579,2.5487,130.73,130.59,1.40638281]
[1725795197684,2.5487,130.73,130.6,1.3322]
[1725795203199,2.5487,130.73,130.61,1.40610271]
[1725795203693,2.5487,130.73,130.62,1.3368]
[1725795214817,2.5487,130.73,130.63,3.73507805]
[1725795215108,2.5487,130.73,130.6,1.3322]
[1725795229013,2.5487,130.73,130.61,1.40609303]
[1725795230912,2.5487,130.73,130.6,1.3322]
[1725795231115,2.5487,130.73,130.61,1.40598277]
[1725795232814,1.3444,130.73,130.6,1.3322]
[1725795233021,1.2017,130.77,130.61,1.4060143]
[1725795233313,2.5885,130.77,130.61,1.4060143]
[1725795233719,2.5885,130.77,130.6,1.3322]
[1725795233918,22.99,130.76,130.61,1.40599745]
[1725795234119,26.89283091,130.76,130.61,1.40599745]
[1725795238017,26.89283091,130.76,130.6,1.3322]
[1725795238018,26.89283091,130.76,130.62,1.40598018]
[1725795238218,26.89283091,130.76,130.63,2.7058]
[1725795238420,26.89283091,130.76,130.63,6.46985167]
[1725795240422,22.99,130.76,130.63,6.46985167]
[1725795240817,26.79957684,130.76,130.63,6.46985167]
[1725795259027,22.99,130.76,130.63,6.46985167]
[1725795259328,22.99,130.76,130.64,1.40588642]
[1725795259729,22.99,130.76,130.65,1.3203]
[1725795260133,22.99,130.76,130.66,1.40564271]
[1725795260437,22.99,130.76,130.65,1.3203]
[1725795268545,22.99,130.79,130.65,1.3203]
[1725795268746,1.2629,130.78,130.66,1.40555054]
[1725795269245,1.2629,130.78,130.67,1.40561493]
[1725795269546,1.2629,130.78,130.68,4.05121493]
[1725795269741,1.2629,130.78,130.69,1.40561493]
[1725795269944,3.78489616,130.83,130.68,2.6456]
[1725795270247,2.5205,130.82,130.69,1.40527628]
[1725795270749,2.5205,130.82,130.7,1.3774]
[1725795271339,2.5205,130.82,130.7,5.28349467]
[1725795274252,2.5205,130.82,130.71,1.40505048]
[1725795277352,2.5205,130.82,130.7,12.95249467]
[1725795277658,2.5205,130.82,130.71,1.40477555]
[1725795278851,22.99,130.87,130.71,1.40477555]
[1725795279951,2.5263,130.89,130.71,1.40477555]
[1725795280252,25.5163,130.89,130.71,1.40477555]
[1725795281450,25.5163,130.89,130.7,12.95249467]
[1725795281652,25.5163,130.89,130.71,1.40452903]
[1725795282856,2.5263,130.89,130.71,1.40452903]
[1725795283357,2.5263,130.89,130.72,1.40452903]
[1725795283558,2.5263,130.89,130.74,7.669]
[1725795283756,2.5263,130.89,130.75,3.99262903]
[1725795283957,2.5263,130.89,130.76,1.40452903]
[1725795285558,2.5263,130.89,130.77,1.40430539]
[1725795285767,2.5263,130.89,130.78,2.77370539]
[1725795285973,2.5263,130.89,130.78,1.3694]
[1725795288166,2.5263,130.89,130.79,1.40432302]
[1725795289575,2.5263,130.89,130.78,1.3694]
[1725795289866,2.5263,130.89,130.79,1.40424006]
[1725795290264,2.5263,130.89,130.8,1.3266]
[1725795301480,2.5263,130.89,130.78,1.3694]
[1725795301775,2.5263,130.89,130.77,3.88430383]
[1725795301977,2.5263,130.89,130.75,1.2718]
[1725795302275,2.5263,130.89,130.76,1.4046786]
[1725795302474,2.5263,130.89,130.75,1.2718]
[1725795303074,2.5263,130.89,130.76,1.40465199]
[1725795305169,2.5263,130.89,130.75,1.2718]
[1725795305479,2.5263,130.89,130.76,1.40462618]
[1725795309075,2.5263,130.89,130.75,1.2718]
[1725795309277,2.5263,130.89,130.76,1.40463392]
[1725795311278,2.5263,130.89,130.7,7.47276342]
[1725795311583,1.0,130.88,130.71,4.04546123]
[1725795311884,22.99,130.87,130.72,1.40496123]
[1725795312978,22.99,130.87,130.71,2.6405]
[1725795313183,22.99,130.87,130.72,1.40478059]
[1725795313781,22.99,130.87,130.71,2.6405]
[1725795313782,22.99,130.87,130.73,1.40483248]
[1725795313978,22.99,130.87,130.71,2.6405]
[1725795314286,22.99,130.87,130.72,1.40483248]
[1725795317102,22.99,130.87,130.71,2.6405]
[1725795317279,22.99,130.87,130.72,1.40490731]
[1725795319685,22.99,130.85,130.72,1.40490731]
[1725795319879,2.5168,130.84,130.72,1.40490731]
[1725795320785,25.5068,130.84,130.72,1.40490731]
[1725795320982,25.5068,130.84,130.73,1.40482098]
[1725795321182,25.5068,130.84,130.71,2.6405]
[1725795321383,25.5068,130.84,130.72,1.40485362]
[1725795321784,2.5168,130.84,130.72,1.40485362]
[1725795324885,2.5168,130.84,130.71,13.87616875]
[1725795325088,2.5168,130.84,130.72,14.353379]
[1725795325290,2.5168,130.84,130.73,1.40441827]
[1725795325792,2.5168,130.84,130.74,1.2696]
[1725795326093,2.5168,130.84,130.75,1.40441827]
[1725795326592,2.5168,130.84,130.76,2.7051]
[1725795328388,160.80496105,130.88,130.76,2.7051]
[1725795328589,159.80496105,130.88,130.76,2.7051]
[1725795329281,159.80496105,130.88,130.77,1.40437503]
[1725795329482,159.80496105,130.88,130.77,5.30884579]
[1725795329685,159.80496105,130.88,130.77,3.90447076]
[1725795329890,159.80496105,130.88,130.76,2.7051]
[1725795330097,159.80496105,130.88,130.77,1.40439216]
[1725795330288,159.80496105,130.88,130.77,5.2247972]
[1725795330489,159.80496105,130.88,130.77,3.82040504]
[1725795330685,159.80496105,130.88,130.76,2.7051]
[1725795333498,159.80496105,130.88,130.77,1.40437282]
[1725795333700,159.80496105,130.88,130.77,5.1867582]
[1725795333997,159.80496105,130.88,130.76,2.7051]
[1725795334198,159.80496105,130.88,130.77,1.40437303]
[1725795334389,159.80496105,130.88,130.77,5.30256912]
[1725795334589,159.80496105,130.88,130.76,2.7051]
[1725795334898,159.80496105,130.88,130.72,3.56666875]
[1725795335202,159.80496105,130.88,130.71,10.70000626]
[1725795335203,159.80496105,130.88,130.73,1.40483309]
[1725795335398,1.0,130.87,130.71,1.2892]
[1725795335702,1.0,130.87,130.72,1.40489657]
[1725795335899,1.0,130.87,130.71,1.2892]
[1725795337112,1.0,130.87,130.72,1.4049746]
[1725795338594,1.0,130.87,130.71,1.2892]
[1725795338794,1.0,130.87,130.72,1.40496478]
[1725795339500,1.0,130.87,130.71,1.2892]
[1725795340101,1.0,130.87,130.72,1.40498026]
[1725795340303,3.80112936,130.86,130.71,1.2892]
[1725795340606,3.80112936,130.86,130.72,1.40495791]
[1725795341809,3.80112936,130.86,130.71,1.2892]
[1725795342008,3.80112936,130.86,130.72,1.40496982]
[1725795342397,1.0,130.87,130.72,1.40496982]
[1725795343596,159.80496105,130.88,130.73,5.28428187]
[1725795343811,159.80496105,130.88,130.74,2.76386982]
[1725795343998,159.80496105,130.88,130.75,2.66436982]
[1725795344199,159.80496105,130.88,130.76,1.40496982]
[1725795346515,159.80496105,130.88,130.75,1.2594]
[1725795346901,159.80496105,130.88,130.76,1.40447542]
[1725795350017,159.80496105,130.88,130.73,3.9493]
[1725795350221,159.80496105,130.88,130.74,1.40458922]
[1725795351218,159.80496105,130.88,130.7,6.40890544]
[1725795351414,159.80496105,130.88,130.71,1.40482459]
[1725795351615,159.80496105,130.88,130.71,5.22246445]
[1725795351819,1.0,130.87,130.72,1.40482459]
[1725795352230,1.0,130.87,130.7,2.6742]
[1725795352527,1.0,130.87,130.71,1.40487183]
[1725795353225,1.0,130.87,130.71,3.81507453]
[1725795353423,1.0,130.87,130.7,2.6742]
[1725795353424,22.99,130.86,130.7,2.6742]
[1725795353615,26.82686403,130.86,130.7,2.6742]
[1725795354228,1.0,130.85,130.7,6.58942979]
[1725795354725,2.5398,130.84,130.7,6.58942979]
[1725795355428,2.5398,130.84,130.7,3.91522979]
[1725795355630,1.0,130.83,130.63,4.0087]
[1725795355824,1.0,130.83,130.64,1.40554215]
[1725795356727,1.0,130.83,130.63,7.77800723]
[1725795356926,1.0,130.83,130.64,1.40557546]
[1725795360818,1.0,130.83,130.63,7.77800723]
[1725795361021,1.0,130.83,130.64,1.40541882]
[1725795365837,0.28112402,130.82,130.64,1.40541882]
[1725795366133,0.28112402,130.82,130.63,5.10160723]
[1725795366529,0.28112402,130.81,130.63,5.10160723]
[1725795366733,52.30025871,130.84,130.63,5.10160723]
[1725795366933,0.28117305,130.83,130.63,5.10160723]
[1725795367128,1.0,130.81,130.63,5.10160723]
[1725795369229,1.0,130.81,130.64,1.40583208]
[1725795371234,1.0,130.81,130.63,5.10160723]
[1725795371427,1.0,130.81,130.64,1.40581436]
[1725795376131,1.0,130.81,130.63,5.10160723]
[1725795376336,1.0,130.81,130.64,1.40567545]
[1725795377437,1.0,130.81,130.63,5.10160723]
[1725795377438,1.0,130.81,130.65,1.40568362]
[1725795377743,1.0,130.81,130.63,5.10160723]
[1725795377944,1.0,130.81,130.64,1.40568362]
[1725795381147,1.0,130.81,130.63,5.10160723]
[1725795381148,1.0,130.81,130.65,1.40566603]
[1725795381345,1.0,130.81,130.63,5.10160723]
[1725795381548,1.0,130.81,130.64,1.40566603]
[1725795385951,1.0,130.81,130.65,1.40560068]
[1725795386144,1.0,130.81,130.63,5.10160723]
[1725795386344,1.0,130.81,130.64,1.40563335]
[1725795387549,1.0,130.81,130.64,5.27888837]
[1725795387550,22.99,130.8,130.64,5.27888837]
[1725795387846,22.99,130.8,130.65,1.40563335]
[1725795388350,22.99,130.8,130.63,5.24151058]
[1725795388546,3.4892,130.79,130.64,1.4056022]
[1725795388748,26.4792,130.79,130.64,5.21689126]
[1725795389051,26.4792,130.79,130.65,1.4056022]
[1725795389240,26.4792,130.79,130.63,5.18222216]
[1725795389445,26.4792,130.79,130.64,1.40566541]
[1725795389645,3.4892,130.79,130.64,1.40566541]
[1725795390252,3.4892,130.79,130.63,5.18222216]
[1725795390451,3.4892,130.79,130.64,1.40560005]
[1725795393661,7.21939781,130.79,130.64,5.22951181]
[1725795393962,22.99,130.78,130.65,1.40560005]
[1725795394361,22.99,130.78,130.66,1.40560005]
[1725795394560,22.99,130.78,130.67,2.6566]
[1725795394761,22.99,130.78,130.68,1.3739]
[1725795394965,22.99,130.78,130.68,5.15965799]
[1725795395663,22.99,130.78,130.68,1.3739]
[1725795396566,22.99,130.78,130.67,2.6566]
[1725795396768,1.0,130.77,130.67,2.6566]
[1725795397668,1.0,130.77,130.62,2.7261]
[1725795404583,0.28127047,130.76,130.62,2.7261]
[1725795405171,0.28127047,130.75,130.62,2.7261]
[1725795405374,1.0,130.75,130.62,2.7261]
[1725795405579,1.55041295,130.74,130.61,1.3739]
[1725795405779,0.28133208,130.73,130.61,1.3739]
[1725795405978,2.4684,130.74,130.61,1.3739]
[1725795406483,22.99,130.71,130.61,1.3739]
[1725795406684,26.82723599,130.71,130.61,1.3739]
[1725795407682,1.0,130.7,130.61,1.3739]
[1725795408880,1.2729,130.69,130.55,2.6423]
[1725795409183,2.472,130.69,130.56,1.377]
[1725795409576,1.0,130.68,130.56,1.377]
[1725795427903,23.99,130.68,130.55,1.354]
[1725795428206,0.28147409,130.67,130.51,2.6646]
[1725795428400,0.28147409,130.67,130.51,2.7164]
[1725795428698,22.99,130.65,130.51,2.7164]
[1725795428901,2.83887409,130.64,130.51,2.7164]
[1725795429196,2.5574,130.64,130.41,1.2919]
[1725795429400,23.27157818,130.63,130.42,4.06149091]
[1725795429602,0.28157818,130.62,130.43,1.40789091]
[1725795429902,22.99,130.61,130.43,1.40789091]
[1725795430502,23.99,130.61,130.42,6.46935924]
[1725795430698,27.7730485,130.61,130.43,1.40765396]
[1725795433306,27.7730485,130.61,130.44,1.40769004]
[1725795433608,27.7730485,130.61,130.45,1.40769004]
[1725795433805,27.7730485,130.61,130.46,1.40769004]
[1725795434010,27.7730485,130.61,130.47,4.15219004]
[1725795434205,27.7730485,130.61,130.48,2.68461589]
[1725795434404,27.7730485,130.61,130.48,1.277]
[1725795438313,27.7730485,130.61,130.49,1.40749954]
[1725795438513,27.7730485,130.61,130.49,5.31043373]
[1725795438715,27.7730485,130.61,130.49,3.90293419]
[1725795438910,27.7730485,130.61,130.48,1.277]
[1725795439111,27.7730485,130.61,130.49,1.40749954]
[1725795439309,27.7730485,130.61,130.49,5.21735168]
[1725795439511,27.7730485,130.61,130.49,3.80985214]
[1725795439711,27.7730485,130.61,130.48,1.277]
[1725795440010,27.7730485,130.61,130.49,1.40749135]
[1725795440212,27.7730485,130.61,130.49,5.26224851]
[1725795440413,27.7730485,130.61,130.49,3.85475716]
[1725795440718,27.7730485,130.61,130.48,1.277]
[1725795440914,27.7730485,130.61,130.49,1.40750169]
[1725795441113,27.7730485,130.61,130.49,5.20442217]